Cogmind - Beta 12 @@@ ROGUE MODE // 2023.04.29 @ 23:36:08 Player: Exp. Geonium Core Result: Destroyed by 8R-AWN with 8R-AWN's Boregun Performance ------------- Evolutions (1) 500 Regions Visited (5) 1000 Robots Destroyed (44) 220 Value Destroyed (975) 975 Prototype IDs (23) 460 Alien Tech Used (0) 0 Bonus (300) 300 TOTAL SCORE: 3455 Bonus ------- Aligned with FarCom 300 Cogmind --------- Core Integrity 0/400 Matter 300/300 Energy 100/100 System Corruption 0% Temperature Cool (0) Movement Core (350) Ox6 Location -9/Exiles Parts ------- > --- POWER (1) -------- (None) > --- PROPULSION (3) --- (None) > --- UTILITY (3) ------ Large Storage Unit > --- WEAPON (2) ------- (None) > --- INVENTORY (15) --- Datajack Datajack Peak State ------------ > --- POWER ------------ Ion Engine > --- PROPULSION ------- Light Treads Light Treads Light Treads > --- UTILITY ---------- Large Storage Unit Light Armor Plating Hardened Light Armor Plating > --- WEAPON ----------- Heavy Assault Rifle Heavy Assault Rifle > --- INVENTORY -------- Reinforced Deuterium Engine Reinforced Deuterium Engine Light Treads Light Treads Light Treads Light Armor Plating Light Armor Plating Autogun Grenade Launcher Rocket Launcher Datajack Datajack [Rating: 14] Favorites ----------- Power Ion Engine Engine Ion Engine Propulsion Light Treads Treads Light Treads Leg Aluminum Leg Utility Light Armor Plating Storage Large Storage Unit Protection Light Armor Plating Weapon Autogun Energy Gun Spread Laser Ballistic Gun Autogun Launcher Grenade Launcher Build | -11 -10 -10 -9 -9 -9 ------- Run | Jun Mat Min Mat Min Exi Slots Evolved 2 | . . . 2 . . Power . | . . . . . . Propulsion 1 | . . . 1 . . Utility 1 | . . . 1 . . Weapon . | . . . . . . Parts Attached 45 | . 4 4 16 8 13 Power 1 | . 1 . . . . Engine 1 | . 1 . . . . Core . | . . . . . . Reactor . | . . . . . . Propulsion 12 | . . 2 5 2 3 Treads 12 | . . 2 5 2 3 Leg . | . . . . . . Wheel . | . . . . . . Hover . | . . . . . . Flight . | . . . . . . Utility 13 | . 3 . 5 3 2 Device . | . . . . . . Storage 1 | . 1 . . . . Processor . | . . . . . . Hackware . | . . . . . . Protection 12 | . 2 . 5 3 2 Artifact . | . . . . . . Weapon 19 | . . 2 6 3 8 Energy Gun 2 | . . . 2 . . Energy Cannon . | . . . . . . Ballistic Gun 9 | . . 1 3 1 4 Ballistic Cannon . | . . . . . . Launcher 8 | . . 1 1 2 4 Special Weapon . | . . . . . . Impact Weapon . | . . . . . . Slashing Weapon . | . . . . . . Piercing Weapon . | . . . . . . Special Melee Weapon . | . . . . . . Unidentified Prototypes . | . . . . . . Parts Lost 23 | . 1 5 . 1 16 Power 1 | . . . . . 1 Propulsion 8 | . . 2 . . 6 Utility 6 | . 1 1 . . 4 Weapon 8 | . . 2 . 1 5 Highest Loss Streak 16 | . 1 3 . 1 16 To Critical Strikes 8 | . . . . . 8 Average Slot Usage (%) 95 | . 99 89 99 96 92 Engine 11 | . 14 14 11 11 9 Treads 26 | . . 17 33 33 32 Leg 4 | . 28 9 . . . Storage 11 | . 14 14 11 11 11 Protection 19 | . 13 9 22 22 20 Energy Gun 1 | . . . 6 . . Ballistic Gun 16 | . 28 18 13 14 15 Launcher 3 | . . 4 1 4 3 Naked Turns . | . . . . . . Heaviest Build 40 | 11 31 33 37 39 40 Greatest Support 60 | 20 20 40 60 60 60 Greatest Overweight (x) 7 | . 1 1 . . 7 Average Overweight (x) . | . . . . . . Largest Inventory Capacity 15 | . 15 15 15 15 15 Average Capacity 14 | . 10 15 15 15 15 Most Carried 15 | . 8 12 15 15 15 Average Carried 11 | . 7 8 12 14 10 Final Capacity 15 | 8 15 15 15 15 15 Final Carried 15 | 6 8 12 15 15 2 Class Distribution -------------------- 70% | Mutant 29% | Scavenger-Mutant Dominant Class ---------------- Mutant | -10/Materials Mutant | -10/Mines Mutant | -9/Materials Mutant | -9/Mines Scavenger-Mutant | -9/Exiles Resources | -11 -10 -10 -9 -9 -9 ----------- Run | Jun Mat Min Mat Min Exi Matter Collected 1589 | 200 129 118 415 283 444 Remotely . | . . . . . . Salvage Created 1280 | . 346 96 738 92 8 Parts 99 | . 18 2 57 22 . Haulers Intercepted 3 | . 1 . 2 . . Recyclers Shooed 4 | . 1 . 2 1 . Parts Field Recycled . | . . . . . . Retrieved Matter . | . . . . . . Parts Self-Destructed . | . . . . . . Prevented . | . . . . . . Kills | -11 -10 -10 -9 -9 -9 ------- Run | Jun Mat Min Mat Min Exi Combat Hostiles Destroyed 36 | . 6 4 13 8 5 Guns 16 | . 6 1 9 . . AOE 20 | . . 3 4 8 5 Classes Destroyed 10 | . 3 1 6 . . Worker 3 | . . . 2 1 . Builder 2 | . . . 1 1 . Tunneler 4 | . . . 2 2 . Hauler 3 | . 1 . 2 . . Recycler 2 | . 1 . 1 . . Watcher 1 | . . . 1 . . Swarmer 8 | . . . 2 6 . Grunt 17 | . 6 2 7 2 . Sentry 4 | . . . 4 . . Assembled 7 | . . 2 . . 5 Best Kill Streak 6 | . 2 2 6 5 5 Combat Bots Only 5 | . 2 2 4 3 5 Max Kills in Single Turn 3 | . 1 1 3 3 2 Gunslinging 1 | . . . 1 . . Exploded 2 | . . 1 2 2 2 Melee . | . . . . . . Uniques/NPCs Destroyed . | . . . . . . Combat | -11 -10 -10 -9 -9 -9 -------- Run | Jun Mat Min Mat Min Exi Damage Taken 3363 | . 518 325 484 332 1704 Core 611 | . 130 70 28 53 330 Absorbed by Shields . | . . . . . . Core Remaining (%) 60 | 100 . 20 . . . Volleys Fired 166 | . 35 14 53 19 45 Largest 2 | . 2 2 2 2 2 Hottest 130 | . 40 40 130 46 63 Shots Fired 295 | . 70 22 103 29 71 Gun 273 | . 70 19 100 20 64 Cannon . | . . . . . . Launcher 22 | . . 3 3 9 7 Special . | . . . . . . Kinetic 269 | . 70 19 96 20 64 Thermal 4 | . . . 4 . . Explosive 22 | . . 3 3 9 7 Electromagnetic . | . . . . . . Robot Hit Streak 18 | . 9 4 13 9 18 Robot Miss Streak 4 | . 2 4 3 2 2 Penetration Max . | . . . . . . Secondary Targets 4 | . 3 . 1 . . Max Gunslinging Chain 1 | . 1 . 1 . . Shots Hit Robots 194 | . 45 12 68 15 54 Core Hits 91 | . 19 8 32 14 18 Critical Kills . | . . . . . . Critical Parts Destroyed 2 | . . . 2 . . Critical Strikes 2 | . . . 2 . . Destroy 2 | . . . 2 . . Melee Attacks . | . . . . . . Impact . | . . . . . . Slashing . | . . . . . . Piercing . | . . . . . . Sneak Attacks . | . . . . . . Combat Hostiles . | . . . . . . Follow-up Attacks . | . . . . . . Damage Inflicted 4224 | . 489 266 1389 788 1292 Guns 2669 | . 482 125 1093 178 791 Cannons . | . . . . . . Explosions 1442 | . . 141 248 583 470 Melee . | . . . . . . Ramming 113 | . 7 . 48 27 31 Kinetic 2604 | . 482 125 1028 178 791 Thermal 65 | . . . 65 . . Explosive 1442 | . . 141 248 583 470 Electromagnetic . | . . . . . . Impact . | . . . . . . Slashing . | . . . . . . Piercing . | . . . . . . Highest Corruption . | . . . . . . Average Corruption . | . . . . . . Corruption Purged . | . . . . . . Corruption Blocked . | . . . . . . Overload Shots . | . . . . . . Overflow Damage 104 | . . 3 . 100 1 Projectiles . | . . . . . . Explosions 104 | . . 3 . 100 1 Melee . | . . . . . . Knockbacks 1 | . . . 1 . . Impact 1 | . . . 1 . . Kinetic . | . . . . . . Secondary . | . . . . . . Self-Inflicted Damage 267 | . . 59 . 185 23 Shots 10 | . . 2 . 7 1 Rammed 21 | . . . 5 4 12 Targets Rammed 26 | . 3 . 6 5 12 Kicked 3 | . 3 . . . . Crushed 2 | . . . 1 1 . Highest Temperature 165 | . 52 22 165 53 12 Average Temperature 21 | . 17 7 30 20 4 Received Heat Transfer 612 | . 285 102 180 45 . Siege Activations . | . . . . . . Robots Corrupted . | . . . . . . Combat Hostiles . | . . . . . . Parts Fried . | . . . . . . Impact Corruptions . | . . . . . . Robots Melted . | . . . . . . Combat Hostiles . | . . . . . . Parts Melted . | . . . . . . Heat Transferred 80 | . . . 80 . . Parts Sabotaged . | . . . . . . Parts Stolen . | . . . . . . Parts Stripped . | . . . . . . Power Chain Reactions . | . . . . . . Missiles Intercepted . | . . . . . . Alert | -11 -10 -10 -9 -9 -9 ------- Run | Jun Mat Min Mat Min Exi Peak Influence 324 | . 147 46 324 245 . Initial 126 | . . 19 17 126 . Average 89 | . 54 19 107 118 . Maximum Alert Level 1 | . . . 1 1 . Low Security (%) 88 | . 100 100 83 82 . Level 1 11 | . . . 16 17 . Level 2 . | . . . . . . Level 3 . | . . . . . . Level 4 . | . . . . . . Level 5 . | . . . . . . High Security . | . . . . . . Max Security . | . . . . . . Squads Dispatched 2 | . 1 . 1 . . Investigation 2 | . 1 . 1 . . Extermination . | . . . . . . Reinforcement . | . . . . . . Assault . | . . . . . . Garrison . | . . . . . . Intercept . | . . . . . . Searches Triggered . | . . . . . . Construction Impeded . | . . . . . . Haulers Reinforced . | . . . . . . Active Scanning Responses . | . . . . . . Cargo Convoy Interrupts . | . . . . . . Stealth | -11 -10 -10 -9 -9 -9 --------- Run | Jun Mat Min Mat Min Exi Distress Signals 1 | . . . 1 . . Communications Jammed . | . . . . . . Distress Signals . | . . . . . . Times Spotted 46 | . 7 4 16 13 6 Peak Tracking Total 9 | . 4 2 5 3 9 Tactical Retreats 5 | . . . 1 4 . Traps | -11 -10 -10 -9 -9 -9 ------- Run | Jun Mat Min Mat Min Exi Traps Triggered 2 | . 1 . 1 . . Indirectly . | . . . . . . Trap Hack Attempts . | . . . . . . Triggered . | . . . . . . Disarmed . | . . . . . . Reprogrammed . | . . . . . . Reused 4 | . . . . . 4 Traps Extracted . | . . . . . . Installed 4 | . . . . . 4 Triggered . | . . . . . . Most Traps Carried 4 | . . 4 4 4 4 Exploded 3 | . . . . . 3 Machines | -11 -10 -10 -9 -9 -9 ---------- Run | Jun Mat Min Mat Min Exi Machines Disabled 4 | . . . 1 . 3 Max in Single Turn 1 | . . . 1 . 1 Machines Repaired . | . . . . . . Machines Sabotaged . | . . . . . . Overloaded Fab Kills . | . . . . . . Hacking | -11 -10 -10 -9 -9 -9 --------- Run | Jun Mat Min Mat Min Exi Machines Accessed 2 | . . . . . 2 Terminals . | . . . . . . Fabricators . | . . . . . . Repair Stations . | . . . . . . Recycling Units . | . . . . . . Scanalyzers . | . . . . . . Garrison Access . | . . . . . . Total Hacks 2 | . . . . . 2 Successful 2 | . . . . . 2 Failed . | . . . . . . Catastrophic . | . . . . . . Database Lockouts . | . . . . . . Manual 1 | . . . . . 1 Terminals . | . . . . . . Fabricators . | . . . . . . Repair Stations . | . . . . . . Recycling Units . | . . . . . . Scanalyzers . | . . . . . . Garrison Access . | . . . . . . Terminal Hacks 2 | . . . . . 2 Record 1 | . . . . . 1 EX-Prototype ID Bank 1 | . . . . . 1 Fabricator Hacks . | . . . . . . Repair Station Hacks . | . . . . . . Recycling Unit Hacks . | . . . . . . Scanalyzer . | . . . . . . Garrison Access Hacks . | . . . . . . Unauthorized Hacks . | . . . . . . Terminals . | . . . . . . Fabricators . | . . . . . . Repair Stations . | . . . . . . Recycling Units . | . . . . . . Scanalyzers . | . . . . . . Garrison Access . | . . . . . . Data Cores Recovered . | . . . . . . Used . | . . . . . . Hacking Detections . | . . . . . . Full Trace Events . | . . . . . . Feedback Events . | . . . . . . Feedback Blocked . | . . . . . . Robot Schematics Acquired . | . . . . . . Robots Built . | . . . . . . Authchips . | . . . . . . Time . | . . . . . . Total Robot Build Rating . | . . . . . . Part Schematics Acquired . | . . . . . . Parts Built . | . . . . . . Authchips . | . . . . . . Time . | . . . . . . Total Part Build Rating . | . . . . . . Parts Repaired . | . . . . . . Time . | . . . . . . Parts Recycled . | . . . . . . Recycled Matter . | . . . . . . Retrieved Matter . | . . . . . . Retrieved Components . | . . . . . . Parts Scanalyzed . | . . . . . . Part Schematics Acquired . | . . . . . . Parts Damaged . | . . . . . . Bothacking | -11 -10 -10 -9 -9 -9 ------------ Run | Jun Mat Min Mat Min Exi Used RIF Installer . | . . . . . . Robots Hacked . | . . . . . . Non-combat . | . . . . . . Combat . | . . . . . . Robot Hacks Applied . | . . . . . . Relay Couplers Released . | . . . . . . Fabnet Peak Effective % . | . . . . . . Robots Rewired . | . . . . . . Allies Hacked . | . . . . . . Hacks Repelled . | . . . . . . Allies | -11 -10 -10 -9 -9 -9 -------- Run | Jun Mat Min Mat Min Exi Total Allies . | . . . . . . Largest Group . | . . . . . . Highest-Rated Group . | . . . . . . Highest-Rated Ally . | . . . . . . Total Orders . | . . . . . . Ally Attacks . | . . . . . . Total Damage . | . . . . . . Kills . | . . . . . . Allies Corrupted . | . . . . . . Allies Melted . | . . . . . . Intel | -11 -10 -10 -9 -9 -9 ------- Run | Jun Mat Min Mat Min Exi Robot Analysis Total . | . . . . . . Derelict Logs Recovered 3 | . . 2 . 1 . Drone Launches . | . . . . . . Drone Recoveries . | . . . . . . Exploration | -11 -10 -10 -9 -9 -9 ------------- Run | Jun Mat Min Mat Min Exi Turns Passed 3407 | . 473 351 646 1031 906 Spaces Moved 1731 | 1 243 174 272 598 443 Core 3 | . . . . . 3 Treads 1425 | . . 115 272 598 440 Legs 303 | 1 243 59 . . . Wheels . | . . . . . . Hover . | . . . . . . Flight . | . . . . . . Fastest Speed 120 | 120 120 160 160 160 160 Average Speed 158 | 120 141 170 160 160 161 Slowest Speed 400 | 120 190 190 160 160 400 Overloaded Moves . | . . . . . . Propulsion Burnouts . | . . . . . . Robots Hopped . | . . . . . . Cave-ins Triggered . | . . . . . . Exploration Rate (%) 43 | 1 37 39 26 98 59 Regions Visited 5 Branch Regions 3 Pre-discovered Areas 3 | . . 1 . 1 1 Known Exits Taken 1 | . . . 1 . . Unknown Exits Taken 4 | 1 1 1 . 1 . Scrap Searched 2 | . . 1 . 1 . Spaces Dug 40 | . . . 6 34 . Terrain Destroyed 146 | . . 16 17 83 30 Melee . | . . . . . . Projectile . | . . . . . . AOE 146 | . . 16 17 83 30 Terrain Rammed . | . . . . . . Walls Destroyed . | . . . . . . Machines Disabled . | . . . . . . Actions | -11 -10 -10 -9 -9 -9 --------- Run | Jun Mat Min Mat Min Exi Total 2118 | . 309 209 394 648 558 Wait 101 | . 13 11 40 6 31 Move 1726 | . 242 173 271 597 443 Hop . | . . . . . . Pick Up 22 | . 7 7 2 3 3 Fast Attach 6 | . 1 1 3 1 . Attach 17 | . 2 3 3 . 9 Detach 2 | . . . 1 1 . Swap 22 | . 1 . 10 7 4 Drop 26 | . 5 . 5 9 7 Fire 166 | . 35 14 53 19 45 Melee . | . . . . . . Ram 1 | . . . . . 1 Kick 3 | . 3 . . . . Crush 22 | . . . 6 5 11 Escape Stasis . | . . . . . . Rewire . | . . . . . . Trap 4 | . . . . . 4 Miscellaneous . | . . . . . . Route ------- -11/Junkyard -10/Materials -10/Mines -9/Materials -9/Mines (discovered 4 exits: [*Mat x2] / *Exi / [*Zio]) -9/Exiles (discovered 1 exit: [*Min]) History --------- Turn | Location | Event 1 | -11/Junkyard | Discovered new exit (range 0) 1 | -11/Junkyard | Entered Materials 314 | -10/Materials | Build established: Mutant 341 | -10/Materials | Discovered new exit (range 8) 433 | -10/Materials | Core integrity fell below 50% 474 | -10/Materials | Entered Mines 531 | -10/Mines | Assembled infested the area 680 | -10/Mines | Found a hidden stash of uninstalled traps 749 | -10/Mines | Lost 3 parts (1u2w) 812 | -10/Mines | Learned location of Storage (-8) 812 | -10/Mines | Discovered new exit (range 7) 813 | -10/Mines | Learned location of 1 exit from Materials 825 | -10/Mines | Entered Materials 825 | -9/Materials | Evolved 2 slots: Propulsion x1, Utility x1 826 | -9/Materials | Identified exit to Mines 1471 | -9/Materials | Entered Mines 1472 | -9/Mines | A Derelict revealed a hidden shortcut to a safe place 1611 | -9/Mines | Discovered new exit (range 8) 1691 | -9/Mines | Received a Rocket Launcher from a helpful Derelict 1717 | -9/Mines | Build established: Scavenger-Mutant 1834 | -9/Mines | Joined a pair of Derelicts in attacking an 0b10 outpost 1858 | -9/Mines | Learned location of Zion (-7) 2157 | -9/Mines | Build established: Mutant 2297 | -9/Mines | Discovered new exit (range 8) 2496 | -9/Mines | Deemed a non-threat by the Exiles lab entrance 2496 | -9/Mines | Discovered new exit (range 5) 2502 | -9/Mines | Entered Exiles 2541 | -9/Exiles | Met 8R-AWN 2570 | -9/Exiles | Met EX-HEX 2634 | -9/Exiles | Met EX-DEC 2785 | -9/Exiles | Met EX-BIN 2807 | -9/Exiles | Aligned with FarCom system 2809 | -9/Exiles | Given EX-Vault access code 2846 | -9/Exiles | Opened EX-Vault 2883 | -9/Exiles | Warned to stay clear of 0b10 Research branches 3007 | -9/Exiles | Build established: Scavenger-Mutant 3020 | -9/Exiles | Discovered new exit (range 14) 3165 | -9/Exiles | Attacked by the Exiles 3324 | -9/Exiles | Core integrity fell below 50% 3396 | -9/Exiles | Core integrity fell below 20% 3408 | -9/Exiles | Destroyed by 8R-AWN with 8R-AWN's Boregun Last Messages --------------- 03391_ Penetrated by HV Slug. 03391_ HV Slug penetrates Earth. 03391_ Slammed into 8R-AWN. 03395_ Penetrated by HV Slug. 03395_ HV Slug penetrates Earth. 03395_ Penetrated by HV Slug. 03395_ Lgt. Treads destroyed. 03395_ HV Slug penetrates Earth. 03396_ Slammed into 8R-AWN. 03399_ Penetrated by HV Slug. 03399_ HV Slug penetrates Machine. 03399_ Machine disabled. 03399_ Penetrated by HV Slug. 03399_ HV Slug penetrates Wall. 03403_ Penetrated by HV Slug. 03403_ Rocket Launcher destroyed. 03403_ Penetrated by HV Slug. 03408_ HV Slug penetrates Wall. 03408_ HV Slug penetrates Machine. 03408_ Penetrated by HV Slug. Map ----- +----------------------------------------------------+ | ?????????????????????????????????????????????????? | | ?????????????????????????????????????????????????? | | ?????????????????????????????????????????????????? | | ?????????????????????????????????????????????????? | | ?????????????????????????????????????????????????? | | ?????????????????????????????????????????????????? | | ??????????????????????????#??????????????????????? | | ?????????????????????????? #?????????????????????? | | ?????????????????????????# #????????????????????#" | | ?????????????????????????# #????????????????????#" | | ?????????????????????????# #????????????????????#" | | ?????????????????????????# #????????????????????#" | | ?????????????????????????# #?????????????????????# | | ?????????????????????????# #?????????????????????? | | ?????????????????????###?# #?????????????????????? | | ?????????????????????# ## #?????????????????????? | | ??????????????????????#;;;;####??????????????????? | | ???????????#?##???????# !!! #??????????????????? | | ?????????? #""??????# ##??????????????????? | | ?????????? ?????# %%% ;#??????????????????? | | ????????? #????## %%%%##???????????####???? | | ????????? ###?#" %%%% ##?????????? """??? | | ????????? ## %g #??????????" """#?? | | ?????????# #"" # # #?????????" #?? | | ????????????# # ### #???????"" #?? | | ??????????????## @ #"#??##???????"" "#?? | | ???????????????### ";#??????????? ""??? | | ??????????????###" ;; ??????????" "???? | | ??????????????"""" ;##?????????# #???? | | ??????????! "## ## #???### ###?# | | ?????????#! "? ###X# #"### | | ?????????#! ?#### """" | | ?????????# !"""" "#?????#" "" " | | ?????????#??###;##??????#### " | | ?????????????? ????????????#;# | | ???????????????????????????? # | | ???????????????????????????? #?# | | ?????????????????????????????#?### | | ?????????????????????????????????##" | | ??????????????????????????????????#""" | | ??????????????????????????????????#" | | ?????????????????????????????????#"" | | ?????????????????????????????????#""" "" | | ?????????????????????????????????""" "" | | ?????????????????????????????????""" "" | | ??????????????????????????????????" # | | ??????????????????????????????????"" | | ?????????????????????????????????"" | | ??????????????????????????????????"" | | ???????????????????????????????????""" | +----------------------------------------------------+ Best States ------------- Heat Dissipation 28 Energy Generation 10 Energy Capacity 250 Matter Stores 300 Matter Capacity 300 Sight Range 16 Terrain Scan Density 10 Armor Coverage 300 Evasion (%) 55 Recoil Reduction 3 Item Schematics ----------------- None Robot Schematics ------------------ None Fabricated ------------ Nothing Alien Tech Used ----------------- None Achievements -------------- None Challenges ------------ None Game ------ Seed PulseArchitectStripper Manual? 0 Play Time 00:19:08 Cumulative 425.8 hours Start 2023.04.29 @ 23:14:53 End 2023.04.29 @ 23:36:08 Sessions 1 Manual Loads 0 Difficulty Rogue Special Mode None Game No. 464 Rogue 464 Adventurer 0 Explorer 0 Win Type - Total 12 Types 8/0/3/1/0/0/0/0/0 Lore% 82 Gallery% 90 Achievement% 80 Wizard Run 0 Options --------- ASCII 0 Keyboard 0 Movement Numpad Keybinds 0 Fullscreen 1 Font 18/Terminus Map View 76x50 Tactical HUD 1 Map Filters NONE Filters NONE Steam 1 RUN: 7bba589a-21f3-432e-bc4e-a43fe8d9ce45